Cogmind - Beta 13 @@@ ROGUE MODE // 2024.03.31 @ 20:23:46 Player: SonVince Result: Destroyed by as-84378 with Assembled Blade Performance ------------- Evolutions (0) 0 Regions Visited (2) 400 Robots Destroyed (17) 85 Value Destroyed (436) 436 Prototype IDs (0) 0 Alien Tech Used (0) 0 Bonus (0) 0 TOTAL SCORE: 921 Bonus ------- None Cogmind --------- Core Integrity 0/250 Matter 299/300 Energy 100/100 System Corruption 1% Temperature Cool (96) Movement Walking (330) Ox3 Location -10/Mines Parts ------- > --- POWER (1) -------- (None) > --- PROPULSION (2) --- Improved Aluminum Leg Improved Aluminum Leg (fused) > --- UTILITY (2) ------ Huge Storage Unit Signal Interpreter > --- WEAPON (2) ------- Spread Laser Heavy Assault Rifle > --- INVENTORY (25) --- Weight Redist. System Terrain Scanner Transport Network Coupler Shotgun Shotgun Shotgun Shotgun Grenade Launcher Grenade Launcher Grenade Launcher Grenade Launcher Hammer Peak State ------------ > --- POWER ------------ Ion Engine > --- PROPULSION ------- Improved Aluminum Leg Improved Aluminum Leg > --- UTILITY ---------- Huge Storage Unit Weight Redist. System > --- WEAPON ----------- Shotgun Shotgun > --- INVENTORY -------- Ion Engine Improved Aluminum Leg Improved Aluminum Leg Transport Network Coupler Spread Laser Shotgun Shotgun Grenade Launcher Grenade Launcher Hammer [Rating: 13] Favorites ----------- Power Ion Engine Engine Ion Engine Propulsion Improved Aluminum Leg Leg Improved Aluminum Leg Utility Huge Storage Unit Device Weight Redist. System Storage Huge Storage Unit Processor Signal Interpreter Weapon Spread Laser Energy Gun Spread Laser Ballistic Gun Shotgun Impact Weapon Hammer Build | -11 -10 -10 ------- Run | Yrd Mat Min Slots Evolved . | . . . Power . | . . . Propulsion . | . . . Utility . | . . . Weapon . | . . . Parts Attached 25 | 6 17 2 Power 2 | 1 1 . Engine 2 | 1 1 . Core . | . . . Reactor . | . . . Propulsion 8 | 2 5 1 Treads . | . . . Leg 8 | 2 5 1 Wheel . | . . . Hover . | . . . Flight . | . . . Utility 5 | 1 4 . Device 2 | . 2 . Storage 2 | 1 1 . Processor 1 | . 1 . Hackware . | . . . Protection . | . . . Artifact . | . . . Weapon 10 | 2 7 1 Energy Gun 5 | 1 4 . Energy Cannon . | . . . Ballistic Gun 4 | 1 2 1 Ballistic Cannon . | . . . Launcher . | . . . Special Weapon . | . . . Impact Weapon 1 | . 1 . Slashing Weapon . | . . . Piercing Weapon . | . . . Special Melee Weapon . | . . . Unidentified Prototypes . | . . . Parts Lost 5 | . 4 1 Power 2 | . 1 1 Propulsion 1 | . 1 . Utility . | . . . Weapon 2 | . 2 . Highest Loss Streak 2 | . 2 1 To Critical Strikes . | . . . Average Slot Usage (%) 89 | . 86 100 Engine 13 | . 12 14 Leg 27 | . 27 28 Storage 14 | . 14 14 Processor 6 | . 4 14 Energy Gun 16 | . 14 26 Ballistic Gun 7 | . 8 1 Impact Weapon 1 | . 1 . Naked Turns . | . . . Heaviest Build 91 | 13 91 91 Greatest Support 32 | 20 32 26 Greatest Overweight (x) 6 | . 6 3 Average Overweight (x) 1 | . 1 3 Largest Inventory Capacity 25 | 8 25 25 Average Capacity 21 | 7 20 25 Most Carried 19 | 7 19 13 Average Carried 12 | 4 13 12 Final Capacity 25 | 8 25 25 Final Carried 13 | 4 13 12 Class Distribution -------------------- 100% | Mutant Dominant Class ---------------- Mutant | -10/Materials Mutant | -10/Mines Resources | -11 -10 -10 ----------- Run | Yrd Mat Min Matter Collected 640 | 186 348 106 Remotely . | . . . Salvage Created 457 | . 405 52 Parts 19 | . 16 3 Haulers Intercepted 2 | . 2 . Recyclers Shooed . | . . . Parts Field Recycled . | . . . Retrieved Matter . | . . . Parts Self-Destructed . | . . . Prevented . | . . . Kills | -11 -10 -10 ------- Run | Yrd Mat Min Combat Hostiles Destroyed 12 | . 10 2 Guns 12 | . 10 2 Classes Destroyed 5 | . 4 1 Hauler 2 | . 2 . Watcher 3 | . 3 . Swarmer 3 | . 3 . Grunt 7 | . 7 . Sentry 2 | . . 2 Best Kill Streak 3 | . 3 2 Combat Bots Only 3 | . 3 2 Max Kills in Single Turn 2 | . 2 1 Gunslinging 1 | . 1 . Exploded . | . . . Melee . | . . . Uniques/NPCs Destroyed . | . . . Combat | -11 -10 -10 -------- Run | Yrd Mat Min Hostile Shots Fired 116 | . 85 31 Missed 28 | . 23 5 Damage Taken 1170 | . 736 434 Core 252 | . 134 118 Absorbed by Shields . | . . . Core Remaining (%) 100 | 100 . . Volleys Fired 60 | . 51 9 Largest 2 | . 2 2 Hottest 130 | . 130 130 Shots Fired 97 | . 79 18 Gun 97 | . 79 18 Cannon . | . . . Launcher . | . . . Special . | . . . Kinetic 39 | . 37 2 Thermal 58 | . 42 16 Explosive . | . . . Electromagnetic . | . . . Robot Hit Streak 13 | . 13 12 Robot Miss Streak 11 | . 11 11 Penetration Max . | . . . Secondary Targets 2 | . 1 1 Max Gunslinging Chain 1 | . 1 1 Shots Hit Robots 75 | . 61 14 Core Hits 70 | . 58 12 Critical Kills . | . . . Critical Parts Destroyed 1 | . 1 . Critical Strikes 3 | . 3 . Burn 2 | . 2 . Destroy 1 | . 1 . Melee Attacks 1 | . 1 . Impact 1 | . 1 . Slashing . | . . . Piercing . | . . . Sneak Attacks . | . . . Combat Hostiles . | . . . Follow-up Attacks . | . . . Damage Inflicted 1021 | . 764 257 Guns 1021 | . 764 257 Cannons . | . . . Explosions . | . . . Melee . | . . . Ramming . | . . . Kinetic 332 | . 316 16 Thermal 689 | . 448 241 Explosive . | . . . Electromagnetic . | . . . Impact . | . . . Slashing . | . . . Piercing . | . . . Highest Corruption 1 | . 1 1 Average Corruption 1 | . 1 1 Corruption Purged . | . . . Corruption Blocked . | . . . Effects 13 | . 7 6 Message Errors 1 | . 1 . Matter Fused 4 | . 2 2 Heat Flow Errors 2 | . 1 1 Parts Fused 1 | . . 1 Data Loss (minor) 4 | . 2 2 Weapon Failures 1 | . 1 . Overload Shots . | . . . Overflow Damage . | . . . Projectiles . | . . . Explosions . | . . . Melee . | . . . Knockbacks . | . . . Impact . | . . . Kinetic . | . . . Secondary . | . . . Self-Inflicted Damage . | . . . Shots . | . . . Rammed . | . . . Targets Rammed . | . . . Kicked . | . . . Crushed . | . . . Highest Temperature 555 | . 252 555 Average Temperature 120 | . 70 226 Received Heat Transfer 495 | . 303 192 Effects 3 | . . 3 Energy Bleed 1 | . . 1 Matter Decay 1 | . . 1 Damage (minor) 1 | . . 1 Siege Activations . | . . . Robots Corrupted . | . . . Combat Hostiles . | . . . Parts Fried . | . . . Impact Corruptions . | . . . Robots Melted . | . . . Combat Hostiles . | . . . Parts Melted . | . . . Heat Transferred 1184 | . 889 295 Parts Sabotaged . | . . . Parts Stolen . | . . . Parts Stripped . | . . . Power Chain Reactions . | . . . Alert | -11 -10 -10 ------- Run | Yrd Mat Min Peak Influence 100 | . 100 89 Initial 19 | . . 19 Average 37 | . 31 68 Maximum Alert Level . | . . . Low Security (%) 100 | 100 100 100 Level 1 . | . . . Level 2 . | . . . Level 3 . | . . . Level 4 . | . . . Level 5 . | . . . High Security . | . . . Max Security . | . . . Squads Dispatched 2 | . 2 . Investigation 1 | . 1 . Extermination . | . . . Reinforcement 1 | . 1 . Assault . | . . . Garrison . | . . . Intercept . | . . . Searches Triggered . | . . . Construction Impeded . | . . . Haulers Reinforced . | . . . Active Scanning Responses . | . . . Cargo Convoy Interrupts . | . . . Stealth | -11 -10 -10 --------- Run | Yrd Mat Min Distress Signals . | . . . Communications Jammed . | . . . Distress Signals . | . . . Times Spotted 36 | . 23 13 Peak Tracking Total 8 | . 3 8 Tactical Retreats . | . . . Traps | -11 -10 -10 ------- Run | Yrd Mat Min Traps Triggered 2 | . 2 . Indirectly . | . . . Trap Hack Attempts . | . . . Triggered . | . . . Disarmed . | . . . Reprogrammed . | . . . Reused . | . . . Traps Extracted . | . . . Installed . | . . . Triggered . | . . . Machines | -11 -10 -10 ---------- Run | Yrd Mat Min Machines Disabled . | . . . Max in Single Turn . | . . . Machines Repaired . | . . . Machines Dismantled . | . . . Machines Sabotaged . | . . . Overloaded Fab Kills . | . . . Hacking | -11 -10 -10 --------- Run | Yrd Mat Min Machines Accessed 1 | . 1 . Terminals . | . . . Fabricators . | . . . Repair Stations . | . . . Recycling Units 1 | . 1 . Scanalyzers . | . . . Garrison Access . | . . . Total Hacks 1 | . 1 . Successful 1 | . 1 . Failed . | . . . Catastrophic . | . . . Database Lockouts . | . . . Manual . | . . . Terminals . | . . . Fabricators . | . . . Repair Stations . | . . . Recycling Units 1 | . 1 . Scanalyzers . | . . . Garrison Access . | . . . Terminal Hacks . | . . . Fabricator Hacks . | . . . Repair Station Hacks . | . . . Recycling Unit Hacks 1 | . 1 . Report Inventory 1 | . 1 . Scanalyzer . | . . . Garrison Access Hacks . | . . . Unauthorized Hacks . | . . . Terminals . | . . . Fabricators . | . . . Repair Stations . | . . . Recycling Units . | . . . Scanalyzers . | . . . Garrison Access . | . . . Data Cores Recovered . | . . . Used . | . . . Hacking Detections . | . . . Full Trace Events . | . . . Feedback Events . | . . . Feedback Blocked . | . . . Robot Schematics Acquired . | . . . Robots Built . | . . . Authchips . | . . . Time . | . . . Total Robot Build Rating . | . . . Part Schematics Acquired . | . . . Parts Built . | . . . Authchips . | . . . Time . | . . . Total Part Build Rating . | . . . Parts Repaired . | . . . Time . | . . . Parts Recycled . | . . . Recycled Matter . | . . . Retrieved Matter . | . . . Retrieved Components . | . . . Parts Scanalyzed . | . . . Part Schematics Acquired . | . . . Parts Damaged . | . . . Bothacking | -11 -10 -10 ------------ Run | Yrd Mat Min Used RIF Installer . | . . . Robots Hacked . | . . . Non-combat . | . . . Combat . | . . . Robot Hacks Applied . | . . . Relay Couplers Released . | . . . Fabnet Peak Effective % . | . . . Robots Rewired . | . . . Allies Hacked . | . . . Hacks Repelled . | . . . Allies | -11 -10 -10 -------- Run | Yrd Mat Min Total Allies . | . . . Largest Group . | . . . Highest-Rated Group . | . . . Highest-Rated Ally . | . . . Total Orders . | . . . Ally Attacks . | . . . Total Damage . | . . . Kills . | . . . Allies Corrupted . | . . . Allies Melted . | . . . Intel | -11 -10 -10 ------- Run | Yrd Mat Min Robot Analysis Total . | . . . Derelict Logs Recovered 1 | . . 1 Drone Launches . | . . . Drone Recoveries . | . . . Exploration | -11 -10 -10 ------------- Run | Yrd Mat Min Turns Passed 2205 | 52 1747 406 Spaces Moved 701 | 36 554 111 Core 11 | 10 1 . Treads . | . . . Legs 690 | 26 553 111 Wheels . | . . . Hover . | . . . Flight . | . . . Fastest Speed 50 | 50 120 330 Average Speed 256 | 100 252 330 Slowest Speed 540 | 120 540 330 Overloaded Moves . | . . . Propulsion Burnouts . | . . . Robots Hopped . | . . . Cave-ins Triggered . | . . . Exploration Rate (%) 30 | 4 56 32 Regions Visited 2 Branch Regions 1 Pre-discovered Areas . | . . . Known Exits Taken 1 | . 1 . Unknown Exits Taken 1 | 1 . . Scrap Searched 1 | . . 1 Spaces Dug 1 | . 1 . Terrain Destroyed 1 | . 1 . Melee 1 | . 1 . Projectile . | . . . AOE . | . . . Terrain Rammed . | . . . Walls Destroyed . | . . . Machines Disabled . | . . . Actions | -11 -10 -10 --------- Run | Yrd Mat Min Total 1009 | 50 827 132 Wait 177 | 2 168 7 Move 699 | 35 553 111 Hop . | . . . Pick Up 31 | 7 23 1 Fast Attach 6 | 3 3 . Attach 10 | 3 7 . Detach 1 | . 1 . Swap 9 | . 7 2 Drop 15 | . 13 2 Fire 60 | . 51 9 Melee 1 | . 1 . Ram . | . . . Kick . | . . . Crush . | . . . Escape Stasis . | . . . Rewire . | . . . Trap . | . . . Miscellaneous . | . . . Route ------- -11/Scrapyard -10/Materials (discovered 3 exits: *Mat x2 / *Min) -10/Mines (discovered 1 exit: *Mat) History --------- Turn | Location | Event 6 | -11/Scrapyard | Discovered new exit (range 15) 53 | -11/Scrapyard | Entered Materials 301 | -10/Materials | Build established: Mutant 717 | -10/Materials | Discovered new exit (range 3) 1099 | -10/Materials | Discovered new exit (range 16) 1300 | -10/Materials | Identified exit to Materials 1507 | -10/Materials | Discovered new exit (range 11) 1635 | -10/Materials | Identified exit to Mines 1689 | -10/Materials | Core integrity fell below 50% 1800 | -10/Materials | Entered Mines 1840 | -10/Mines | Core integrity fell below 20% 1866 | -10/Mines | Met a Derelict bent on vengeance 1996 | -10/Mines | Learned Materials non-interactive machine intel 1996 | -10/Mines | Discovered exit to Materials (range 10) 2174 | -10/Mines | Assembled infested the area 2179 | -10/Mines | Assisted by a Guerilla fighting off Assembled 2206 | -10/Mines | Destroyed by as-84378 with Assembled Blade Last Messages --------------- K-01 Serf collects debris. Acquired 10 matter. Dropped Spread Laser. ALERT: Infestation in the mines, dispatching Demolisher response squad. A derelict emerges from the shadows: "You need to get out of here! I've been tracking a group of Assembled to figure out where they're coming from, and they're closing on this area, come on!" PF-4VL(h): "I'll hold them off! Go on ahead or try to find another way!" K-01 Serf collects debris. K-01 Serf destroyed. PF-4VL(h) destroyed. as-62655 sneak attacks. as-62655 destroyed. The unstable cave ceiling collapses. U-05 Engineer lays Concrete. The unstable cave ceiling collapses. U-05 Engineer lays Concrete. U-05 Engineer destroyed. The unstable cave ceiling collapses. Knocked back. Ion Engine destroyed. Map ----- +----------------------------------------------------+ | ?????????????# """ ##????# ## ### #### | | ??????????????# """ ####?# ## ## ##???## | | ?????????????## """ < #?# ## ##??????# | | ?????????????# ### # ##????????# | | ?????????????# #### ###?????????? | | ?????????????# ###??# ##????????????? | | ?????????????# #????##############?????????????? | | ?????????????# #???????????????????????????????? | | ??????# ###### #???????????????????????????????? | | ??# ##??????????????????????????????? | | ???????####### ##?????????????????????????????? | | ????????????## "%#####?????????????????????????? | | ???????????## %! ##????????????????????????? | | ???????????# * = #????????????????????????? | | ??????????## !%! ##???????????????????????? | | ??????????# " ##??????????????????????? | | ??????????# "" ##??????????????????????? | | ??????????# """ ###????????????????????? | | ??????????## [ #????????????????????? | | ???????????## % # #????????????????????? | | ????????????# = =% ##???????????????????? | | ???????????### * # a #???????????????????? | | ???????????# ?# ##??????????????????? | | ?????????????# # #??????????????????? | | ?????????????# a #??????????????????? | | ?????? % ####### @ ##??????????????????? | | ???????# #???# #?????## ###???????????????????? | | ?????????????# #??????#a #?????????????????????? | | ????????????? #??????# d#?????????????????????? | | ????????????? ??????# #?????????????????????? | | ????????????? ??????#aa#?????????????????????? | | ????????????? #??????# #?????????????????????? | | ????????????## ##?????? ?????????????????????? | | ?????????????? ???????? ?????????????????????? | | ?????????????? ???????? ????????????????????? | | ?????????????? ???????? ????????????????????? | | ??????????????????????? ????????????????????? | | ??????????????????????? ???????????????????? | | ??????????????????????? ???????????????????? | | ??????????????????????? ???????????????????? | | ??????????????????????? ##??????????????????? | | ??????????????????????? #???????????????????? | | ??????????????????????? ?????????????????????? | | ????????????????????????????????????????????????? | | ????????????????????????????????????????????????? | | ????????????????????????????????????????????????? | | ????????????????????????????????????????????????? | | ????????????????????????????????????????????????? | | ????????????????????????????????????????????????? | | ????????????????????????????????????????????????? | +----------------------------------------------------+ Best States ------------- Heat Dissipation 25 Energy Generation 10 Energy Capacity 250 Matter Stores 300 Matter Capacity 300 Sight Range 16 Terrain Scan Range 14 Terrain Scan Density 10 Additional Mass Support 6 Evasion (%) 55 Item Schematics ----------------- None Robot Schematics ------------------ None Fabricated ------------ Nothing Alien Tech Used ----------------- None Achievements -------------- None Challenges ------------ None Game ------ Seed HypervelocitySensorCapacitor Manual? 0 Play Time 00:14:52 Cumulative 4.8 hours Start 2024.03.31 @ 20:09:14 End 2024.03.31 @ 20:23:46 Sessions 1 Manual Loads 0 Difficulty Rogue Special Mode None Game No. 12 Rogue 12 Adventurer 0 Explorer 0 Win Type - Total 0 Types 0/0/0/0/0/0/0/0/0 Lore% 6 Gallery% 8 Achievement% 10 Wizard Run 0 Options --------- Layout 0 ASCII 0 Keyboard 0 Movement Mouse Keybinds 0 Fullscreen 1 Font 24/Smallcaps Map View 56x25 Zoom Use 99% Tactical HUD 0 Map Filters NONE Filters NONE Steam 1 RUN: 57b8acef-e4ce-440d-9549-0e02eef8a70c